bitfinex/quotes_BTCUSD_20250901
["timestamp","ask_amount","ask_price","bid_price","bid_amount"]
[1756694104398,1.42163994,107730.0,107720.0,0.03815512]
[1756694106315,1.06916112,107730.0,107720.0,0.03815512]
[1756694106547,1.07214112,107730.0,107720.0,0.03815512]
[1756694107004,1.07210112,107730.0,107720.0,0.03815512]
[1756694107230,1.03926812,107730.0,107720.0,0.04336512]
[1756694107454,1.03926812,107730.0,107720.0,0.03815512]
[1756694107455,1.04121812,107730.0,107720.0,0.03815512]
[1756694107671,1.04419812,107730.0,107720.0,0.03815512]
[1756694110047,1.04447812,107730.0,107720.0,0.03815512]
[1756694111234,1.39409694,107730.0,107720.0,0.03815512]
[1756694111459,1.40355417,107730.0,107720.0,0.03815512]
[1756694112002,1.47491417,107730.0,107720.0,0.03815512]
[1756694112672,1.47391417,107730.0,107720.0,0.03615512]
[1756694112795,1.47291417,107730.0,107720.0,0.03615512]
[1756694113206,1.56889418,107730.0,107720.0,0.03615512]
[1756694113593,1.56889418,107730.0,107720.0,0.03715512]
[1756694114060,1.69530507,107730.0,107720.0,0.03715512]
[1756694114480,1.72321007,107730.0,107720.0,0.03715512]
[1756694115255,1.63471375,107730.0,107720.0,0.03715512]
[1756694116496,1.617538,107730.0,107720.0,0.03715512]
[1756694116691,1.63471101,107730.0,107720.0,0.03715512]
[1756694117563,1.63471239,107730.0,107720.0,0.03715512]
[1756694117716,1.6939873,107730.0,107720.0,0.03715512]
[1756694117925,1.78228362,107730.0,107720.0,0.03715512]
[1756694118130,1.75487924,107730.0,107720.0,0.03715512]
[1756694118544,0.18571826,107690.0,107680.0,0.14493114]
[1756694118739,0.69757708,107690.0,107680.0,0.14697114]
[1756694119791,0.34986826,107690.0,107680.0,0.14580114]
[1756694119999,0.536813,107690.0,107680.0,0.14998114]
[1756694120182,0.699173,107690.0,107680.0,0.14998114]
[1756694120534,0.700493,107690.0,107680.0,0.14998114]
[1756694120738,0.35087418,107690.0,107680.0,0.14998114]
[1756694121107,0.700493,107690.0,107680.0,0.14998114]
[1756694121313,0.35286418,107690.0,107680.0,0.14682114]
[1756694121531,0.35286418,107690.0,107680.0,0.15000114]
[1756694121532,0.35175418,107690.0,107680.0,0.15000114]
[1756694121788,0.703363,107690.0,107680.0,0.15000114]
[1756694121996,0.701373,107690.0,107680.0,0.15000114]
[1756694122198,0.703363,107690.0,107680.0,0.14476114]
[1756694122405,1.046333,107690.0,107680.0,0.14476114]
[1756694122609,0.69671418,107690.0,107680.0,0.14281626]
[1756694122815,1.046333,107690.0,107680.0,0.14281626]
[1756694125012,1.046493,107690.0,107680.0,0.14281626]
[1756694125430,0.878803,107690.0,107680.0,0.14487626]
[1756694125659,0.00147592,107690.0,107680.0,0.14805626]
[1756694125874,0.00147592,107690.0,107680.0,0.24298115]
[1756694126111,0.00147592,107690.0,107680.0,0.59343666]
[1756694126352,0.00147592,107690.0,107680.0,0.40770115]
[1756694126593,0.00147592,107690.0,107680.0,0.60268162]
[1756694127047,0.00147592,107690.0,107680.0,0.93831882]
[1756694127266,0.00147592,107690.0,107680.0,1.13831882]
[1756694127731,0.00147592,107690.0,107680.0,1.29671882]
[1756694127986,0.00147592,107690.0,107680.0,1.70765764]
[1756694128210,0.00028262,107690.0,107680.0,2.11887486]
[1756694128429,0.00230742,107730.0,107710.0,0.58567881]
[1756694128650,0.0721143,107720.0,107710.0,0.49098984]
[1756694128863,0.0721143,107720.0,107710.0,0.59851183]
[1756694129084,0.0721143,107720.0,107710.0,0.76323183]
[1756694129508,0.53509375,107720.0,107710.0,0.18920985]
[1756694129727,0.53708375,107720.0,107710.0,0.34146489]
[1756694129967,0.53708375,107720.0,107710.0,0.33306489]
[1756694130175,0.54005375,107720.0,107710.0,0.00194488]
[1756694130597,0.88948096,107720.0,107710.0,0.00194488]
[1756694130801,0.88948096,107720.0,107710.0,0.00494488]
[1756694131008,0.54005375,107720.0,107710.0,0.00494488]
[1756694131471,0.53708375,107720.0,107710.0,0.00700488]
[1756694131474,0.35033703,107730.0,107710.0,0.00718488]
[1756694131692,0.53740117,107720.0,107710.0,0.10116489]
[1756694131907,0.53609375,107720.0,107710.0,0.10216489]
[1756694132361,0.54105375,107720.0,107710.0,0.09592489]
[1756694132617,0.53808375,107720.0,107710.0,0.09798489]
[1756694132849,0.53609375,107720.0,107710.0,0.10116489]
[1756694133981,0.18666654,107720.0,107710.0,0.10116489]
[1756694134161,0.53808375,107720.0,107710.0,0.09798489]
[1756694134533,0.35042721,107720.0,107710.0,0.10116489]
[1756694134755,0.53609375,107720.0,107710.0,0.10116489]
[1756694135126,0.18666654,107720.0,107710.0,0.10216489]
[1756694135333,0.35042721,107720.0,107710.0,0.10216489]
[1756694135537,0.001,107720.0,107710.0,0.11373089]
[1756694136799,0.001,107720.0,107710.0,0.27588985]
[1756694138671,0.001,107720.0,107710.0,0.27572985]
[1756694139292,0.001,107720.0,107710.0,1.01084084]
[1756694139838,0.001,107720.0,107710.0,1.01960084]
[1756694140041,0.001,107720.0,107710.0,0.67017363]
[1756694140263,0.001,107720.0,107710.0,0.66917363]
[1756694140669,0.001,107720.0,107710.0,0.67117363]
[1756694140897,0.001,107720.0,107710.0,1.06185269]
[1756694141102,0.001,107720.0,107710.0,1.05985269]
[1756694141312,4.757e-05,107730.0,107720.0,0.38566654]
[1756694141540,4.757e-05,107730.0,107720.0,0.90261376]
[1756694141766,4.757e-05,107730.0,107720.0,0.53374001]
[1756694143076,0.00104757,107730.0,107720.0,0.72140655]
[1756694143312,0.00104757,107730.0,107720.0,0.72340655]
[1756694146188,0.00104757,107730.0,107720.0,0.53774001]
[1756694147631,0.00104757,107730.0,107720.0,0.37358001]
[1756694147927,0.00104757,107730.0,107720.0,0.17040001]
[1756694147928,0.18868687,107730.0,107720.0,0.17040001]
[1756694148112,0.54108408,107730.0,107720.0,0.16834001]
[1756694148332,0.54108408,107730.0,107720.0,0.33206001]
[1756694149633,0.54108408,107730.0,107720.0,0.33210001]
[1756694149905,0.54108408,107730.0,107720.0,0.26074001]
[1756694152366,0.00104757,107730.0,107720.0,0.45167655]
[1756694152540,0.00104757,107730.0,107720.0,0.65167655]
[1756694152754,0.00104757,107730.0,107720.0,0.46601001]
[1756694155183,0.18872687,107730.0,107720.0,0.26601001]
[1756694155339,0.18872687,107730.0,107720.0,0.09914001]
[1756694155545,0.53815408,107730.0,107720.0,0.26130001]
[1756694156369,0.18872687,107730.0,107720.0,0.26130001]
[1756694157141,0.00307757,107730.0,107720.0,0.26130001]
[1756694157347,0.00104757,107730.0,107720.0,0.26657001]
[1756694159822,0.18872687,107730.0,107720.0,0.09914001]
[1756694160168,0.54131408,107730.0,107720.0,0.09698001]
[1756694160367,0.54131408,107730.0,107720.0,0.26086001]
[1756694160578,0.54131408,107730.0,107720.0,0.09698001]
[1756694160785,0.54131408,107730.0,107720.0,0.26086001]
[1756694161195,0.54131408,107730.0,107720.0,0.1678]
[1756694162978,0.54131408,107730.0,107720.0,0.004]
[1756694163182,0.54131408,107730.0,107720.0,0.1678]
[1756694163388,0.19188687,107730.0,107720.0,0.1678]
[1756694163593,0.54131408,107730.0,107720.0,0.1678]
[1756694164882,0.54131408,107730.0,107720.0,0.004]
[1756694165088,0.54131408,107730.0,107720.0,0.16764]
[1756694165290,0.88131408,107730.0,107720.0,0.004]
[1756694165942,0.18566654,107720.0,107710.0,0.16554488]
[1756694166152,0.18566654,107720.0,107710.0,0.17081488]
[1756694166381,0.53712375,107720.0,107710.0,0.16770488]
[1756694167061,0.18669973,107730.0,107710.0,0.26611593]
[1756694167283,0.53612694,107730.0,107720.0,0.07447]
[1756694167487,0.53612694,107730.0,107720.0,0.07663]
[1756694167940,0.53712694,107730.0,107720.0,0.07763]
[1756694168370,0.53815694,107730.0,107720.0,0.07763]
[1756694168993,0.53612694,107730.0,107720.0,0.07763]
[1756694169212,0.35047478,107730.0,107720.0,0.1821758]
[1756694169418,0.35047478,107730.0,107720.0,0.36552151]
[1756694169679,0.35147478,107730.0,107720.0,0.36552151]
[1756694169885,0.00204757,107730.0,107720.0,0.36552151]
[1756694170512,0.00204757,107730.0,107720.0,0.56552151]
[1756694170718,0.00204757,107730.0,107720.0,0.71552151]
[1756694171139,0.00047167,107730.0,107720.0,0.74241051]
[1756694171343,0.00047167,107730.0,107720.0,1.45277654]
[1756694171549,0.42154151,107760.0,107740.0,0.38562363]
[1756694171763,0.42162994,107760.0,107750.0,0.33545019]
[1756694171969,0.42162994,107760.0,107750.0,0.33313001]
[1756694172391,8.843e-05,107760.0,107750.0,0.51874485]
[1756694172599,8.843e-05,107760.0,107750.0,0.76026149]
[1756694172818,0.00108843,107760.0,107750.0,0.76026149]
[1756694173047,8.843e-05,107760.0,107750.0,0.76026149]
[1756694173474,8.843e-05,107760.0,107750.0,0.76126149]
[1756694173673,8.843e-05,107760.0,107750.0,0.78224031]
[1756694173877,8.843e-05,107760.0,107750.0,0.42129927]
[1756694174084,0.54030326,107760.0,107750.0,0.32898001]
[1756694174284,0.54030326,107760.0,107750.0,0.32998001]
[1756694174501,0.35254564,107760.0,107750.0,0.35786101]
[1756694174749,0.35154564,107760.0,107750.0,0.35902101]
[1756694174979,0.54130326,107760.0,107750.0,0.33382001]
[1756694175179,0.54130326,107760.0,107750.0,0.33282001]
[1756694175383,0.54030326,107760.0,107750.0,0.32882001]
[1756694175598,0.35154564,107760.0,107750.0,0.33398001]
[1756694175802,0.35254564,107760.0,107750.0,0.33498001]
[1756694176002,0.53814326,107760.0,107750.0,0.33198001]
[1756694176207,0.18871605,107760.0,107750.0,0.33198001]
[1756694176408,0.53814326,107760.0,107750.0,0.33298001]
[1756694176609,0.53814326,107760.0,107750.0,0.33082001]
[1756694176861,0.19187605,107760.0,107750.0,0.33082001]
[1756694177108,0.54130326,107760.0,107750.0,0.16634001]
[1756694177248,0.54130326,107760.0,107750.0,0.33102001]
[1756694178284,0.9401472,107760.0,107750.0,0.002]
[1756694178458,0.89073047,107760.0,107750.0,0.16664]
[1756694178661,1.23073047,107760.0,107750.0,0.16664]
[1756694178851,1.23073047,107760.0,107750.0,0.002]
[1756694179697,1.23073047,107760.0,107750.0,0.001]
[1756694179907,1.23173047,107760.0,107750.0,0.001]
[1756694180660,0.52561484,107750.0,107740.0,0.16758488]
[1756694180857,0.87827205,107750.0,107740.0,0.16758488]
[1756694181135,0.88040205,107750.0,107740.0,0.16758488]
[1756694181890,0.53097484,107750.0,107740.0,0.16758488]
[1756694182108,0.88040205,107750.0,107740.0,0.16758488]
[1756694182320,0.88040205,107750.0,107740.0,0.16742488]
[1756694182498,0.88140205,107750.0,107740.0,0.16842488]
[1756694182697,0.88140205,107750.0,107740.0,0.00294488]
[1756694182897,0.89068918,107750.0,107740.0,0.16644]
[1756694183121,1.05604918,107750.0,107740.0,0.001]
[1756694183320,1.076988,107750.0,107740.0,0.001]
[1756694183681,1.25826433,107750.0,107740.0,0.001]
[1756694183792,1.19786801,107750.0,107740.0,0.001]
[1756694184735,1.20086801,107750.0,107740.0,0.001]
[1756694184903,0.1856493,107730.0,107720.0,0.16726488]
[1756694185253,0.53507651,107730.0,107720.0,0.16726488]
[1756694185458,0.54043651,107730.0,107720.0,0.16726488]
[1756694186016,0.54043651,107730.0,107720.0,0.00194488]
[1756694186225,0.88043651,107730.0,107720.0,0.00194488]
[1756694186432,0.18566654,107720.0,107710.0,0.2366]
[1756694186622,0.54045375,107720.0,107710.0,0.2366]
[1756694187680,0.54145375,107720.0,107710.0,0.23974235]
[1756694187825,0.54145375,107720.0,107710.0,0.24074235]
[1756694188035,0.53822375,107720.0,107710.0,0.24271235]
[1756694188233,0.54145375,107720.0,107710.0,0.24074235]
[1756694191277,0.53822375,107720.0,107710.0,0.24271235]
[1756694191477,0.54145375,107720.0,107710.0,0.24074235]
[1756694191825,0.54145375,107720.0,107710.0,0.16894235]
[1756694193032,1.23088096,107720.0,107710.0,0.00414235]
[1756694194157,1.23088096,107720.0,107710.0,0.00314235]
[1756694194370,1.23188096,107720.0,107710.0,0.00314235]
[1756694194598,1.23088096,107720.0,107710.0,0.00014235]
[1756694194785,1.23288096,107720.0,107710.0,0.00114235]
[1756694195039,0.88345375,107720.0,107710.0,0.00114235]
[1756694195240,1.04789375,107720.0,107710.0,0.00114235]
[1756694195462,1.04785375,107720.0,107710.0,0.00114235]
[1756694195886,0.53402654,107720.0,107710.0,0.00114235]
[1756694196113,1.04462375,107720.0,107710.0,0.00114235]
[1756694196317,1.04785375,107720.0,107710.0,0.00114235]
[1756694197473,0.88345375,107720.0,107710.0,0.00114235]
[1756694197682,1.04781375,107720.0,107710.0,0.00114235]
[1756694198295,1.04765375,107720.0,107710.0,0.00114235]
[1756694199332,1.04765375,107720.0,107710.0,0.00619235]
[1756694199333,0.87809375,107720.0,107710.0,0.00619235]
[1756694201270,1.39369096,107720.0,107710.0,0.00114235]
[1756694201471,1.48990097,107720.0,107710.0,0.00114235]
[1756694201651,1.51083979,107720.0,107710.0,0.00114235]
[1756694204172,1.53874679,107720.0,107710.0,0.00114235]
[1756694205941,1.53862679,107720.0,107710.0,0.00114235]
[1756694209468,1.37470679,107720.0,107710.0,0.00114235]
[1756694209645,1.53838679,107720.0,107710.0,0.00114235]
[1756694211959,1.37470679,107720.0,107710.0,0.00114235]
[1756694212165,1.53806679,107720.0,107710.0,0.00114235]
[1756694212314,1.53802679,107720.0,107710.0,0.00114235]
[1756694212547,1.53802679,107720.0,107710.0,0.00618235]
[1756694212548,1.04145375,107720.0,107710.0,0.00618235]
[1756694212751,1.04347375,107720.0,107710.0,0.00315235]
[1756694212950,1.39601096,107720.0,107710.0,0.00114235]
[1756694213156,1.39290096,107720.0,107710.0,0.00315235]
[1756694213563,0.69404654,107720.0,107710.0,0.00315235]
[1756694213772,0.52866654,107720.0,107710.0,0.00618235]
[1756694213985,0.53809375,107720.0,107710.0,0.00618235]
[1756694214194,0.18866654,107720.0,107710.0,0.00618235]
[1756694214611,0.53809375,107720.0,107710.0,0.00618235]
[1756694215079,0.18866654,107720.0,107710.0,0.09916236]
[1756694216174,0.18766654,107720.0,107710.0,0.09916236]
[1756694216378,0.18766654,107720.0,107710.0,0.10116236]
[1756694216590,0.53709375,107720.0,107710.0,0.10116236]
[1756694217008,0.18766654,107720.0,107710.0,0.10116236]
[1756694217214,0.18766654,107720.0,107710.0,0.26500236]
[1756694217657,0.18566654,107720.0,107710.0,0.26400236]
[1756694218412,0.18666654,107720.0,107710.0,0.26800236]
[1756694218629,0.18666654,107720.0,107710.0,0.10416236]
[1756694219828,0.18666654,107720.0,107710.0,0.1064834]
[1756694220475,0.53609375,107720.0,107710.0,0.10416236]
[1756694220626,0.53811375,107720.0,107710.0,0.10416236]
[1756694220830,0.53609375,107720.0,107710.0,0.10416236]
[1756694221251,0.53609375,107720.0,107710.0,0.1064834]
[1756694221409,0.35042721,107720.0,107710.0,0.1064834]
[1756694221608,0.001,107720.0,107710.0,0.1778434]
[1756694221809,0.001,107720.0,107710.0,0.76352718]
[1756694222013,0.001,107720.0,107710.0,1.11063335]
[1756694222866,0.001,107720.0,107710.0,0.76120614]
[1756694223273,0.001,107720.0,107710.0,0.73904236]
[1756694223797,0.001,107720.0,107710.0,0.92472614]
[1756694224825,0.001,107720.0,107710.0,0.57552236]
[1756694225029,0.001,107720.0,107710.0,0.73892236]
[1756694225240,0.53609375,107720.0,107710.0,0.73884236]
[1756694225448,0.53811375,107720.0,107710.0,0.17048236]
[1756694225861,0.54122375,107720.0,107710.0,0.33384236]
[1756694226066,0.54122375,107720.0,107710.0,0.00614235]
[1756694227069,0.54022375,107720.0,107710.0,0.00214235]
[1756694227858,0.54022375,107720.0,107710.0,0.00014235]
[1756694228078,1.39301096,107720.0,107710.0,0.00014235]
[1756694228236,1.39401096,107720.0,107710.0,0.00414235]
[1756694228706,1.39301096,107720.0,107710.0,0.00014235]
[1756694228904,1.39401096,107720.0,107710.0,0.00414235]
[1756694229256,1.04358375,107720.0,107710.0,0.00114235]
[1756694229464,1.04358375,107720.0,107710.0,0.00014235]
[1756694229641,1.04458375,107720.0,107710.0,0.00114235]
[1756694229842,1.04558375,107720.0,107710.0,0.00014235]
[1756694230303,0.53068654,107720.0,107710.0,0.00315235]
[1756694230499,0.52866654,107720.0,107710.0,0.00618235]
[1756694230903,0.52866654,107720.0,107710.0,0.00114235]
[1756694230904,0.53379654,107720.0,107710.0,0.00114235]
[1756694231115,0.88322375,107720.0,107710.0,0.00114235]
[1756694231322,0.88011375,107720.0,107710.0,0.00315235]
[1756694232135,0.88322375,107720.0,107710.0,0.00114235]
[1756694233526,1.23265096,107720.0,107710.0,0.00114235]
[1756694233958,0.69687654,107720.0,107710.0,0.00114235]
[1756694234178,1.04630375,107720.0,107710.0,0.00114235]
[1756694235046,0.69372654,107720.0,107710.0,0.00114235]
[1756694235253,1.04626375,107720.0,107710.0,0.00114235]
[1756694235968,0.69683654,107720.0,107710.0,0.00114235]
[1756694236174,1.04618375,107720.0,107710.0,0.00114235]
[1756694236803,0.88322375,107720.0,107710.0,0.00114235]
[1756694237013,1.04303375,107720.0,107710.0,0.00315235]
[1756694237227,0.52866654,107720.0,107710.0,0.00618235]
[1756694237430,0.18866654,107720.0,107710.0,0.09916236]
[1756694238099,14.93842692,107770.0,107740.0,0.18562845]
[1756694238313,14.93842692,107770.0,107760.0,0.35143721]
[1756694238513,14.93842692,107770.0,107760.0,0.45560706]
[1756694238721,14.93842692,107770.0,107760.0,0.45863706]
[1756694238934,14.93842692,107770.0,107760.0,0.29480747]
[1756694239142,14.93842692,107770.0,107760.0,0.45560706]
[1756694239354,14.93842692,107770.0,107760.0,0.26969985]
[1756694239560,14.93942692,107770.0,107760.0,0.26969985]
[1756694239764,15.12922577,107770.0,107760.0,0.09492489]
[1756694239970,15.13022577,107770.0,107760.0,0.26240489]
[1756694240140,14.93951537,107770.0,107760.0,0.26448489]
[1756694240450,15.13025577,107770.0,107760.0,0.09892489]
[1756694240655,15.13025577,107770.0,107760.0,0.26436489]
[1756694241068,15.13025577,107770.0,107760.0,0.26236489]
[1756694241506,15.12925577,107770.0,107760.0,0.26036489]
[1756694241928,15.47968298,107770.0,107760.0,0.00694488]
[1756694243440,15.64304298,107770.0,107760.0,0.005]
[1756694244589,15.98304298,107770.0,107760.0,0.005]
[1756694244813,16.07602299,107770.0,107760.0,0.005]
[1756694245791,0.18561484,107750.0,107740.0,0.19389918]
[1756694246006,0.54020205,107750.0,107740.0,0.19389918]
[1756694246217,0.54020205,107750.0,107740.0,0.07405918]
[1756694246650,0.19077484,107750.0,107740.0,0.07405918]
[1756694246856,0.18772484,107750.0,107740.0,0.07405918]
[1756694247050,0.19077484,107750.0,107740.0,0.07405918]
[1756694247687,0.19077484,107750.0,107740.0,0.00194488]
[1756694248884,0.19177484,107750.0,107740.0,0.00394488]
[1756694251474,0.18872484,107750.0,107740.0,0.00602488]
[1756694251680,0.18661484,107750.0,107740.0,0.00602488]
[1756694251889,0.001,107750.0,107740.0,0.00602488]
[1756694252097,0.001,107750.0,107740.0,0.10445529]
[1756694252310,0.18661484,107750.0,107740.0,0.10445529]
[1756694252958,0.18661484,107750.0,107740.0,0.25992489]
[1756694252959,0.19177484,107750.0,107740.0,0.25992489]
[1756694253228,0.18872484,107750.0,107740.0,0.26200489]
[1756694254600,0.18872484,107750.0,107740.0,0.09900489]
[1756694254806,0.18872484,107750.0,107740.0,0.26208489]
[1756694255011,0.18661484,107750.0,107740.0,0.26208489]
[1756694256893,0.18661484,107750.0,107740.0,0.2805776]
[1756694257074,0.18661484,107750.0,107740.0,0.2837076]
[1756694257378,0.001,107750.0,107740.0,0.2837076]
[1756694257587,0.001,107750.0,107740.0,0.29295408]
[1756694257787,0.18661484,107750.0,107740.0,0.29295408]
[1756694258024,0.18661484,107750.0,107740.0,0.12674408]
[1756694258357,0.18661484,107750.0,107740.0,0.28966408]
[1756694258568,0.18561484,107750.0,107740.0,0.29279408]
[1756694258768,0.18561484,107750.0,107740.0,0.12987408]
[1756694258996,0.18872484,107750.0,107740.0,0.29462408]
[1756694259203,0.18661484,107750.0,107740.0,0.29462408]
[1756694259627,0.18661484,107750.0,107740.0,0.29775408]
[1756694260399,0.18661484,107750.0,107740.0,0.64718129]
[1756694260608,0.001,107750.0,107740.0,0.64718129]
[1756694260810,0.001,107750.0,107740.0,1.23281336]
[1756694261423,0.001,107750.0,107740.0,1.63281336]
[1756694261620,0.001,107750.0,107740.0,1.28338615]
[1756694261823,0.001,107750.0,107740.0,1.63281336]
[1756694262678,0.001,107750.0,107740.0,1.28430129]
[1756694262914,0.18661484,107750.0,107740.0,0.69458408]
[1756694263149,0.18661484,107750.0,107740.0,1.04401129]
[1756694263360,0.18661484,107750.0,107740.0,0.64401129]
[1756694263941,0.18661484,107750.0,107740.0,0.48117129]
[1756694264359,0.001,107750.0,107740.0,0.64393129]
[1756694264560,0.001,107750.0,107740.0,0.64706129]
[1756694264945,0.18872484,107750.0,107740.0,0.64385129]
[1756694265344,0.18872484,107750.0,107740.0,0.13174408]
[1756694265546,0.19177484,107750.0,107740.0,0.29230408]
[1756694268936,0.19177484,107750.0,107740.0,0.29438408]
[1756694270428,0.18872484,107750.0,107740.0,0.29438408]
[1756694271607,0.19187484,107750.0,107740.0,0.29438408]
[1756694271837,0.18872484,107750.0,107740.0,0.29438408]
[1756694272040,0.18661484,107750.0,107740.0,0.29438408]
[1756694272426,0.001,107750.0,107740.0,0.64685129]
[1756694272637,0.001,107750.0,107740.0,0.90459766]
[1756694273697,0.001,107750.0,107740.0,1.10459766]
[1756694275718,0.001,107750.0,107740.0,1.47429648]
[1756694275953,0.001,107750.0,107740.0,1.70218048]
[1756694275954,0.00024463,107750.0,107740.0,1.70218048]
[1756694276149,0.00024463,107750.0,107740.0,1.67249641]
[1756694276534,0.00024463,107750.0,107740.0,2.07049641]
[1756694276736,0.00124463,107750.0,107740.0,2.07549641]
[1756694277600,0.001,107750.0,107740.0,2.07049641]
[1756694277808,0.001,107750.0,107740.0,1.90785641]
[1756694277948,0.002,107750.0,107740.0,2.07429641]
[1756694278153,0.002,107750.0,107740.0,2.00218211]
[1756694281290,0.002,107750.0,107740.0,2.26938211]
[1756694281822,0.002,107750.0,107740.0,1.56884283]
[1756694282036,0.002,107750.0,107740.0,1.86630211]
[1756694282625,0.002,107750.0,107740.0,2.26934211]
[1756694283035,0.002,107750.0,107740.0,1.86934211]
[1756694283507,0.00020029,107750.0,107740.0,2.26934211]
[1756694286247,0.00020029,107750.0,107740.0,2.49230211]
[1756694286634,0.00020029,107750.0,107740.0,2.22510211]
[1756694287685,14.93851537,107770.0,107760.0,1.09653644]
[1756694287826,14.93851537,107770.0,107760.0,2.15697494]
[1756694288409,14.93851537,107770.0,107760.0,2.04514773]
[1756694288781,14.93851537,107770.0,107760.0,2.20754773]
[1756694288953,14.93951537,107770.0,107760.0,2.26312862]
[1756694289360,14.93951537,107770.0,107760.0,2.27634862]
[1756694290079,14.93951537,107770.0,107760.0,2.62577583]
[1756694290740,14.93022429,107770.0,107760.0,2.67577583]
[1756694290947,14.93022429,107770.0,107760.0,2.72577583]
[1756694291165,14.9043985,107770.0,107760.0,2.72577583]
[1756694291367,14.84410766,107770.0,107760.0,2.89230687]
[1756694291573,14.83481658,107770.0,107760.0,2.89230687]
[1756694291779,14.83381658,107770.0,107760.0,2.88230687]
[1756694291977,14.8245255,107770.0,107760.0,2.88630687]
[1756694292177,14.8245255,107770.0,107760.0,2.71977583]
[1756694292373,14.76553117,107770.0,107760.0,2.81759583]
[1756694292574,14.16566223,107770.0,107760.0,4.05097083]
[1756694292828,14.01152947,107770.0,107760.0,3.95311083]
[1756694293052,13.97901068,107770.0,107760.0,3.28152983]
[1756694293255,13.9697196,107770.0,107760.0,3.28152983]
[1756694293457,13.9697196,107770.0,107760.0,2.98973783]
[1756694293671,13.92792817,107770.0,107760.0,3.15209783]
[1756694293872,13.92792817,107770.0,107760.0,3.23352683]
[1756694294074,13.91864119,107770.0,107760.0,3.14967183]
[1756694294291,13.88613674,107770.0,107760.0,3.10878183]
[1756694294495,13.87684976,107770.0,107760.0,3.10878183]
[1756694295018,13.83505833,107770.0,107760.0,3.10878183]
[1756694295217,13.82577135,107770.0,107760.0,2.94642183]
[1756694295425,13.82577135,107770.0,107760.0,3.10878183]
[1756694295632,13.78397992,107770.0,107760.0,3.10878183]
[1756694295997,13.77469294,107770.0,107760.0,3.10878183]
[1756694296192,13.77469294,107770.0,107760.0,2.83289583]
[1756694296396,13.76540596,107770.0,107760.0,2.99521583]
[1756694296594,13.76540596,107770.0,107760.0,2.86076583]
[1756694296824,13.75611898,107770.0,107760.0,2.86076583]
[1756694297000,13.75611898,107770.0,107760.0,2.42061862]
[1756694297202,13.75611898,107770.0,107760.0,2.47061862]
[1756694297403,13.75611898,107770.0,107760.0,2.82308583]
[1756694297961,13.75810898,107770.0,107760.0,2.47061862]
[1756694298653,13.76125898,107770.0,107760.0,1.93577259]
[1756694298873,13.76125898,107770.0,107760.0,2.11903141]
[1756694299082,13.76125898,107770.0,107760.0,2.46845862]
[1756694299462,13.76125898,107770.0,107760.0,2.47061862]
[1756694300052,13.75611898,107770.0,107760.0,2.47061862]
[1756694300444,13.75511898,107770.0,107760.0,2.45861862]
[1756694300667,13.75727898,107770.0,107760.0,2.46061862]
[1756694300871,13.75727898,107770.0,107760.0,2.46261862]
[1756694301076,13.75727898,107770.0,107760.0,2.46061862]
[1756694301295,13.75727898,107770.0,107760.0,2.45861862]
[1756694301640,13.75511898,107770.0,107760.0,2.46261862]
[1756694302058,13.75511898,107770.0,107760.0,2.72981862]
[1756694302284,13.75727898,107770.0,107760.0,2.72981862]
[1756694302458,13.76045898,107770.0,107760.0,2.72981862]
[1756694303263,13.75727898,107770.0,107760.0,2.72981862]
[1756694303598,13.75511898,107770.0,107760.0,2.72981862]
[1756694303802,13.75511898,107770.0,107760.0,3.07924583]
[1756694304014,13.76045898,107770.0,107760.0,2.72761862]
[1756694304221,13.76045898,107770.0,107760.0,1.91591141]
[1756694304430,13.76045898,107770.0,107760.0,2.59974862]
[1756694304668,13.76045898,107770.0,107760.0,2.43746862]
[1756694305085,13.76045898,107770.0,107760.0,1.98312141]
[1756694305291,13.75987813,107770.0,107760.0,1.71560141]
[1756694305493,13.75987813,107770.0,107760.0,2.0440898]
[1756694305913,13.75987813,107770.0,107760.0,1.35332141]
[1756694306160,13.75987813,107770.0,107760.0,1.00678497]
[1756694306359,13.75987813,107770.0,107760.0,1.35466259]
[1756694306584,13.75987813,107770.0,107760.0,1.69266259]
[1756694306806,13.75987813,107770.0,107760.0,1.71460141]
[1756694307193,13.75987813,107770.0,107760.0,1.71260141]
[1756694307634,13.75987813,107770.0,107760.0,1.71360141]
[1756694309625,13.75987813,107770.0,107760.0,1.55132141]
[1756694310041,13.75987813,107770.0,107760.0,1.71360141]
[1756694311800,13.75987813,107770.0,107760.0,2.06302862]
[1756694313102,13.75987813,107770.0,107760.0,1.48650354]
[1756694313301,13.94545853,107770.0,107760.0,1.48650354]
[1756694313505,13.75987813,107770.0,107760.0,1.48650354]
[1756694313772,13.75987813,107770.0,107760.0,1.28650354]
[1756694313915,13.75987813,107770.0,107760.0,1.48650354]
[1756694314732,14.29488574,107770.0,107760.0,0.96328472]
[1756694314931,14.29488574,107770.0,107760.0,0.11439137]
[1756694315141,13.94545853,107770.0,107760.0,0.11439137]
[1756694315342,14.29488574,107770.0,107760.0,0.26845137]
[1756694315956,14.29488574,107770.0,107760.0,0.26745137]
[1756694316314,14.29588574,107770.0,107760.0,0.26745137]
[1756694316924,14.29588574,107770.0,107760.0,0.26645137]
[1756694317135,14.29788574,107770.0,107760.0,0.26645137]
[1756694317541,0.18559762,107760.0,107750.0,0.07132]
[1756694317806,0.54036483,107760.0,107750.0,0.33480001]
[1756694322445,0.53502483,107760.0,107750.0,0.33480001]
[1756694323097,13.94011853,107770.0,107750.0,0.33480001]
[1756694323307,14.28954574,107770.0,107760.0,0.09529998]
[1756694323543,13.94011853,107770.0,107760.0,0.12266408]
[1756694323768,14.28954574,107770.0,107760.0,0.12266408]
[1756694324402,14.29154574,107770.0,107760.0,0.12266408]
[1756694324609,14.29054574,107770.0,107760.0,0.12266408]
[1756694324996,14.10696534,107770.0,107760.0,0.3082617]
[1756694325274,13.94311853,107770.0,107760.0,0.12266408]
[1756694325487,13.94211853,107770.0,107760.0,0.12266408]
[1756694325924,13.75753813,107770.0,107760.0,0.12266408]
[1756694326137,13.94311853,107770.0,107760.0,0.12266408]
[1756694326371,14.29254574,107770.0,107760.0,0.28490408]
[1756694327764,14.29254574,107770.0,107760.0,0.26641137]
[1756694332034,14.29254574,107770.0,107760.0,0.01119136]
[1756694332243,14.29254574,107770.0,107760.0,0.17339136]
[1756694333750,14.29254574,107770.0,107760.0,0.01119136]
[1756694333964,14.29254574,107770.0,107760.0,0.17339136]
[1756694335522,14.29254574,107770.0,107760.0,0.01119136]
[1756694335936,14.29254574,107770.0,107760.0,0.17339136]
[1756694336740,14.29254574,107770.0,107760.0,0.01119136]
[1756694337364,14.29254574,107770.0,107760.0,0.17339136]
[1756694340106,14.61388629,107770.0,107760.0,0.17339136]
[1756694340520,14.27850241,107770.0,107760.0,0.17339136]
[1756694342168,14.27850241,107770.0,107760.0,0.01119136]
[1756694342169,14.77604629,107770.0,107760.0,0.01119136]
[1756694342393,15.11604629,107770.0,107760.0,0.01119136]
[1756694342861,0.18563207,107740.0,107730.0,0.07132]
[1756694343087,0.52101595,107740.0,107730.0,0.17038]